bitfinex/quotes_SOLUSD_20260211
["timestamp","ask_amount","ask_price","bid_price","bid_amount"]
[1770808032066,3.41478639,80.97,80.937,0.5]
[1770808032345,3.41478639,80.96,80.937,0.5]
[1770808035737,3.41478639,80.97,80.937,0.5]
[1770808037346,5.13032502,80.991,80.931,0.5]
[1770808037347,3.41478639,80.96,80.931,0.5]
[1770808037854,17.26,80.99,80.931,0.5]
[1770808038045,3.41478639,80.98,80.941,0.5]
[1770808038239,3.41478639,80.97,80.941,0.5]
[1770808038645,3.41478639,80.98,80.941,0.5]
[1770808039048,3.41478639,80.99,80.951,0.5]
[1770808039649,5.13032502,81.019,80.951,0.5]
[1770808039853,3.41478639,81.0,80.961,0.5]
[1770808042654,3.41478639,80.99,80.961,0.5]
[1770808043157,3.41478639,81.0,80.961,0.5]
[1770808043451,3.41478639,80.99,80.961,0.5]
[1770808047563,3.41478639,81.0,80.961,0.5]
[1770808047765,3.41478639,81.01,80.961,0.5]
[1770808049554,3.41478639,81.0,80.961,0.5]
[1770808049755,3.41478639,80.99,80.961,0.5]
[1770808050063,5.13032502,81.019,80.961,0.5]
[1770808050360,3.41478639,81.0,80.961,0.5]
[1770808050562,5.13032502,81.019,80.961,0.5]
[1770808050736,3.41478639,81.0,80.961,0.5]
[1770808051060,3.41478639,80.99,80.961,0.5]
[1770808051766,5.13032502,81.019,80.961,0.5]
[1770808051767,3.41478639,81.0,80.961,0.5]
[1770808052380,3.41478639,81.01,80.971,0.5]
[1770808053861,5.13032502,81.031,80.971,0.5]
[1770808054061,3.41478639,81.02,80.971,0.5]
[1770808054680,3.41478639,81.01,80.981,0.5]
[1770808054968,3.41087376,81.01,80.981,0.5]
[1770808055645,6.45430697,81.029,80.981,0.5]
[1770808055848,3.41087376,81.03,80.991,0.5]
[1770808056763,3.41087376,81.02,80.981,0.5]
[1770808057464,3.41087376,81.03,80.991,0.5]
[1770808062669,3.41087376,81.02,80.991,0.5]
[1770808063668,3.41087376,81.03,80.991,0.5]
[1770808063865,3.41087376,81.02,80.991,0.5]
[1770808065686,3.41087376,81.03,80.991,0.5]
[1770808066891,3.41087376,81.02,80.991,0.5]
[1770808068075,3.41087376,81.03,80.991,0.5]
[1770808069092,17.58,81.05,80.991,0.5]
[1770808069388,3.41087376,81.03,80.991,0.5]
[1770808070095,3.41087376,81.02,80.981,0.5]
[1770808070291,3.41087376,81.0,80.981,0.5]
[1770808070594,3.41087376,81.0,80.975,0.5]
[1770808070979,3.41087376,81.0,80.961,0.5]
[1770808071693,5.13032502,81.022,80.961,0.5]
[1770808071694,3.41087376,80.99,80.961,0.5]
[1770808072478,3.41087376,81.0,80.961,0.5]
[1770808073400,3.41087376,81.01,80.971,0.5]
[1770808074305,3.41087376,81.0,80.971,0.5]
[1770808074496,3.41087376,80.99,80.965,0.5]
[1770808075503,3.41087376,81.0,80.965,0.5]
[1770808080504,3.41087376,81.01,80.971,0.5]
[1770808081010,3.41087376,81.0,80.971,0.5]
[1770808081382,3.41087376,80.99,80.951,0.5]
[1770808081995,3.41087376,81.0,80.951,0.5]
[1770808082189,3.41087376,81.0,80.961,0.5]
[1770808082389,3.41173666,81.0,80.961,0.5]
[1770808082596,3.41173666,80.99,80.961,0.5]
[1770808083510,3.41173666,80.98,80.961,0.5]
[1770808084626,3.41173666,80.98,80.941,0.5]
[1770808084789,3.41173666,80.97,80.941,0.5]
[1770808085493,3.41173666,80.98,80.941,0.5]
[1770808085692,3.41173666,80.97,80.941,0.5]
[1770808086096,3.41173666,80.96,80.931,0.5]
[1770808086616,3.41173666,80.97,80.931,0.5]
[1770808087892,3.41173666,80.96,80.931,0.5]
[1770808088094,3.41173666,80.95,80.93,0.2]
[1770808088623,3.41173666,80.96,80.931,0.5]
[1770808089298,5.13032502,80.991,80.93,0.2]
[1770808089299,3.41173666,80.98,80.941,0.5]
[1770808089818,3.41173666,81.0,80.941,0.5]
[1770808089992,3.41173666,80.98,80.941,0.5]
[1770808090887,3.41173666,80.97,80.941,0.5]
[1770808092101,3.41173666,80.98,80.941,0.5]
[1770808094613,3.41173666,81.0,80.941,0.5]
[1770808094808,3.41173666,80.98,80.941,0.5]
[1770808098618,3.41173666,80.97,80.941,0.5]
[1770808099107,3.41173666,81.0,80.951,0.5]
[1770808099308,3.41173666,81.0,80.961,0.5]
[1770808106023,3.41173666,80.99,80.961,0.5]
[1770808106506,3.41173666,81.0,80.961,0.5]
[1770808107126,3.41173666,80.99,80.954,0.5]
[1770808107412,3.41173666,80.97,80.931,0.5]
[1770808107819,3.41173666,80.98,80.941,0.5]
[1770808111031,3.41173666,80.99,80.941,0.5]
[1770808111518,3.41173666,80.99,80.951,0.5]
[1770808112035,3.41173666,81.0,80.961,0.5]
[1770808114031,3.41173666,81.01,80.961,0.5]
[1770808114214,3.41173666,81.0,80.961,0.5]
[1770808116923,3.41154795,81.0,80.961,0.5]
[1770808117433,5.13032502,81.021,80.961,0.5]
[1770808117615,3.41154795,81.0,80.961,0.5]
[1770808121033,3.41154795,81.01,80.971,0.5]
[1770808121838,3.41154795,81.02,80.981,0.5]
[1770808123114,3.41154795,81.01,80.981,0.5]
[1770808127036,3.41154795,81.0,80.96,3.41154795]
[1770808127338,3.41154795,81.0,80.961,0.5]
[1770808127746,3.41154795,80.99,80.961,0.5]
[1770808128036,5.13032502,81.027,80.961,0.5]
[1770808128239,3.41154795,81.0,80.961,0.5]
[1770808130135,3.41154795,80.98,80.955,0.5]
[1770808130326,3.41154795,80.97,80.931,0.5]
[1770808130523,3.41154795,80.96,80.931,0.5]
[1770808131946,3.41154795,80.95,80.931,0.5]
[1770808132643,3.41154795,80.94,80.93,0.2]
[1770808133148,3.41154795,80.95,80.93,0.2]
[1770808138349,3.41154795,80.94,80.93,0.2]
[1770808140549,3.41154795,80.96,80.931,0.5]
[1770808141257,3.41154795,80.94,80.93,0.2]
[1770808141466,3.41154795,80.94,80.915,0.5]
[1770808141657,3.41154795,80.93,80.915,0.5]
[1770808142957,3.41154795,80.93,80.901,0.5]
[1770808143347,3.41154795,80.92,80.9,0.2]
[1770808143968,3.41154795,80.91,80.9,0.2]
[1770808144260,3.41154795,80.91,80.89,0.24]
[1770808144460,3.41154795,80.93,80.891,0.5]
[1770808144668,3.41154795,80.94,80.901,0.5]
[1770808145564,3.41154795,80.93,80.901,0.5]
[1770808145754,3.41154795,80.94,80.901,0.5]
[1770808146662,3.41154795,80.92,80.895,0.5]
[1770808149064,3.41154795,80.92,80.89,0.24]
[1770808149065,3.41154795,80.91,80.89,0.24]
[1770808149255,3.41154795,80.92,80.891,0.5]
[1770808149566,3.41154795,80.93,80.891,0.5]
[1770808149942,3.41154795,80.94,80.901,0.5]
[1770808150372,3.41154795,80.94,80.911,0.5]
[1770808151464,3.41154795,80.95,80.911,0.5]
[1770808151851,3.41154795,80.94,80.911,0.5]
[1770808152345,3.41154795,80.93,80.901,0.5]
[1770808154251,3.41154795,80.94,80.901,0.5]
[1770808156068,3.41154795,80.93,80.901,0.5]
[1770808160168,3.41154795,80.92,80.891,0.5]
[1770808160664,3.41154795,80.93,80.891,0.5]
[1770808161046,3.41154795,80.96,80.901,0.5]
[1770808161256,3.41154795,80.93,80.901,0.5]
[1770808161452,3.41154795,80.92,80.891,0.5]
[1770808162370,3.41154795,80.96,80.891,0.5]
[1770808162583,3.41154795,80.92,80.891,0.5]
[1770808163458,3.41154795,80.91,80.89,0.24]
[1770808169683,3.41154795,80.92,80.891,0.5]
[1770808170258,3.41154795,80.93,80.891,0.5]
[1770808170877,3.41154795,80.92,80.891,0.5]
[1770808171678,3.41154795,80.91,80.89,0.24]
[1770808172058,3.41154795,80.91,80.89,0.74]
[1770808172260,3.41154795,80.91,80.891,0.5]
[1770808173184,3.41154795,80.92,80.891,0.5]
[1770808175286,3.41154795,80.93,80.891,0.5]
[1770808176990,3.41757053,80.93,80.891,0.5]
[1770808178492,3.41757053,80.92,80.891,0.5]
[1770808178997,3.41757053,80.93,80.891,0.5]
[1770808179497,15.5562417,80.959,80.901,0.5]
[1770808179498,3.41757053,80.94,80.901,0.5]
[1770808179678,3.41757053,80.95,80.901,0.5]
[1770808179988,3.41757053,80.94,80.901,0.5]
[1770808183692,3.41757053,80.95,80.911,0.5]
[1770808183878,3.41757053,80.94,80.911,0.5]
[1770808187802,3.41757053,80.95,80.911,0.5]
[1770808188097,3.41757053,80.96,80.921,0.5]
[1770808188682,3.41757053,80.95,80.921,0.5]
[1770808189710,5.13032502,80.976,80.921,0.5]
[1770808190000,3.41757053,80.96,80.921,0.5]
[1770808191586,3.41757053,80.97,80.931,0.5]
[1770808192899,3.41757053,80.96,80.931,0.5]
[1770808193105,3.41757053,80.95,80.931,0.5]
[1770808193284,3.41757053,80.94,80.911,0.5]
[1770808194212,3.41623764,80.95,80.911,0.5]
[1770808194780,3.41623764,80.94,80.911,0.5]
[1770808196809,3.41623764,80.95,80.911,0.5]
[1770808197406,5.13032502,80.986,80.911,0.5]
[1770808197596,3.41623764,80.96,80.921,0.5]
[1770808199014,3.41623764,80.97,80.931,0.5]
[1770808199514,3.41623764,80.98,80.941,0.5]
[1770808200912,3.41623764,80.97,80.941,0.5]
[1770808201118,3.41623764,80.95,80.921,0.5]
[1770808201414,3.41623764,80.96,80.921,0.5]
[1770808202009,3.41623764,80.96,80.93,3.41623764]
[1770808202193,3.41623764,80.97,80.931,0.5]
[1770808203203,3.41623764,80.98,80.941,0.5]
[1770808205411,3.41623764,80.96,80.941,0.5]
[1770808205910,3.41623764,80.97,80.941,0.5]
[1770808206110,3.41623764,80.98,80.951,0.5]
[1770808210717,3.41623764,80.97,80.931,0.5]
[1770808211299,3.41623764,80.96,80.931,0.5]
[1770808213116,3.41623764,80.94,80.911,0.5]
[1770808213314,5.36086188,80.991,80.911,0.5]
[1770808213315,3.41623764,80.95,80.911,0.5]
[1770808213702,3.41623764,80.96,80.921,0.5]
[1770808213900,3.41623764,80.97,80.931,0.5]
[1770808216202,3.41623764,80.98,80.951,0.5]
[1770808217425,3.41623764,80.97,80.951,0.5]
[1770808219606,3.41623764,80.98,80.951,0.5]
[1770808221924,3.41623764,80.97,80.941,0.5]
[1770808222822,3.41623764,80.98,80.941,0.5]
[1770808225330,3.41623764,80.97,80.941,0.5]
[1770808226531,3.41623764,80.98,80.941,0.5]
[1770808227726,3.41623764,80.99,80.951,0.5]
[1770808229132,3.41623764,81.0,80.961,0.5]
[1770808229310,3.41623764,81.01,80.971,0.5]
[1770808229514,8.54656266,81.01,80.971,0.5]
[1770808230005,0.1,81.03,80.971,0.5]
[1770808230205,3.41623764,81.01,80.971,0.5]
[1770808237017,3.41090439,81.01,80.971,0.5]
[1770808237917,3.41090439,81.0,80.961,0.5]
[1770808239132,3.41090439,81.01,80.971,0.5]
[1770808243542,3.41090439,81.0,80.971,0.5]
[1770808245351,3.41090439,81.01,80.971,0.5]
[1770808245536,5.23032502,81.02,80.981,0.5]
[1770808245537,3.51090439,81.02,80.981,0.5]
[1770808246021,0.1,81.02,80.991,0.5]
[1770808255826,3.41090439,81.01,80.971,0.5]
[1770808256227,3.51090439,81.02,80.981,0.5]
[1770808256432,0.1,81.02,80.991,0.5]
[1770808257148,3.51090439,81.02,80.991,0.5]
[1770808257947,0.1,81.02,80.991,0.5]
[1770808260451,0.1,81.02,80.99,3.41090439]
[1770808260452,0.1,81.02,81.001,0.5]
[1770808263252,0.1,81.03,81.001,0.46024186]
[1770808266350,0.1,81.03,81.011,0.46024186]
[1770808266956,0.1,81.03,81.021,0.46024186]
[1770808267158,0.2,81.049,81.021,0.46024186]
[1770808267355,164.0,81.073,81.0,3.41090439]
[1770808267356,0.2,81.061,81.031,0.46024186]
[1770808269543,3.41090439,81.07,81.031,0.46024186]
[1770808269749,0.2,81.088,81.051,0.46024186]
[1770808269949,0.2,81.088,81.003,5.13032502]
[1770808269950,0.2,81.069,81.041,0.46024186]
[1770808270147,0.2,81.079,81.041,0.46024186]
[1770808271251,0.2,81.079,81.051,0.46024186]
[1770808272143,0.2,81.091,81.051,0.46024186]
[1770808272344,0.2,81.089,81.051,0.46024186]
[1770808273166,3.41090439,81.08,81.051,0.46024186]
[1770808273365,3.41090439,81.07,81.041,0.46024186]
[1770808273665,0.2,81.069,81.041,0.46024186]
[1770808274180,0.2,81.069,81.03,3.41090439]
[1770808274356,0.2,81.059,81.031,0.46024186]
[1770808274664,3.41090439,81.08,81.01,3.41090439]
[1770808274665,0.2,81.049,81.01,3.41090439]
[1770808274868,0.2,81.049,81.011,0.46024186]
[1770808275068,3.41090439,81.05,81.021,0.46024186]
[1770808276377,0.2,81.049,81.021,0.46024186]
[1770808276760,0.2,81.084,81.021,0.46024186]
[1770808276973,3.61090439,81.05,81.021,0.46024186]
[1770808277471,3.41090439,81.05,81.021,0.46024186]
[1770808277658,0.2,81.057,81.021,0.46024186]
[1770808278056,3.41090439,81.05,81.021,0.46024186]
[1770808278370,0.2,81.057,81.021,0.46024186]
[1770808279480,3.41090439,81.06,81.021,0.46024186]
[1770808283482,0.2,81.059,81.021,0.46024186]
[1770808286484,3.41090439,81.05,81.021,0.46024186]
[1770808287198,0.2,81.059,81.021,0.46024186]
[1770808290362,3.41090439,81.06,81.031,0.49276478]
[1770808292999,0.2,81.069,81.031,0.49276478]
[1770808293693,0.2,81.059,81.031,0.49276478]
[1770808293991,3.41090439,81.05,81.031,0.49276478]
[1770808294865,0.2,81.051,81.031,0.49276478]
[1770808295070,0.2,81.059,81.031,0.49276478]
[1770808295489,3.41090439,81.05,81.011,0.49276478]
[1770808295793,3.41090439,81.05,80.96,3.41090439]
[1770808295794,0.2,81.029,80.991,0.49276478]
[1770808295997,0.2,81.009,80.961,0.49276478]
[1770808296169,3.41090439,81.0,80.961,0.49276478]
[1770808296483,0.2,81.004,80.971,0.49276478]
[1770808296689,3.41090439,81.01,80.971,0.49276478]
[1770808297589,3.41090439,81.04,80.981,0.49276478]
[1770808297590,3.41090439,81.02,80.981,0.49276478]
[1770808297897,0.2,81.019,80.981,0.49276478]
[1770808299079,3.41010342,81.01,80.981,0.49276478]
[1770808299273,0.2,81.019,80.981,0.49276478]
[1770808300177,3.41010342,81.02,80.981,0.49276478]
[1770808300493,0.2,81.019,80.981,0.49276478]
[1770808301889,3.41010342,81.02,80.981,0.49276478]
[1770808302694,3.41010342,81.03,80.991,0.49276478]
[1770808303398,3.61010342,81.03,80.991,0.49276478]
[1770808303774,0.2,81.029,80.991,0.49276478]
[1770808306389,3.41010342,81.02,80.991,0.49276478]
[1770808306705,0.2,81.019,80.991,0.49276478]
[1770808306905,6.43408769,81.036,80.963,5.13032502]
[1770808306906,3.61010342,81.01,80.985,0.49276478]
[1770808307492,0.2,81.01,80.985,0.49276478]
[1770808308707,0.2,81.01,80.98,3.41010342]
[1770808308708,0.2,81.009,80.971,0.49276478]
[1770808309690,0.2,81.019,80.981,0.49276478]
[1770808310603,3.41010342,81.01,80.981,0.49276478]
[1770808311010,0.2,81.009,80.981,0.49276478]
[1770808311308,3.41010342,81.01,80.981,0.49276478]
[1770808314811,0.2,81.016,80.981,0.49276478]
[1770808315111,3.41010342,81.01,80.981,0.49276478]
[1770808315319,0.2,81.009,80.981,0.49276478]
[1770808317418,3.41010342,81.01,80.981,0.49276478]
[1770808317605,0.2,81.015,80.981,0.49276478]
[1770808319321,0.2,81.019,80.981,0.49276478]
[1770808320505,28.58,81.032,80.96,3.40999268]
[1770808320506,0.2,81.029,80.991,0.47360485]
[1770808320913,3.40999268,81.02,80.991,0.47360485]
[1770808321301,3.60999268,81.02,80.991,0.47360485]
[1770808321503,0.2,81.019,80.991,0.47360485]
[1770808321918,28.58,81.032,80.991,0.47360485]
[1770808321919,3.60999268,81.01,80.991,0.47360485]
[1770808322123,3.60999268,81.01,80.953,5.13032502]
[1770808322124,0.2,81.009,80.971,0.47360485]
[1770808323606,0.2,80.999,80.971,0.47360485]
[1770808325721,0.2,81.005,80.971,0.47360485]
[1770808325918,3.40999268,81.01,80.971,0.47360485]
[1770808326314,0.2,80.999,80.971,0.47360485]
[1770808331525,6.43558721,81.016,80.961,0.47360485]
[1770808331526,0.2,80.989,80.961,0.47360485]
[1770808333333,3.40999268,80.99,80.961,0.47360485]
[1770808339429,3.60999268,80.99,80.961,0.47360485]
[1770808339628,0.2,80.989,80.961,0.47360485]
[1770808340524,0.2,80.979,80.961,0.47360485]
[1770808340737,0.2,80.979,80.956,0.46797735]
[1770808341638,0.2,80.979,80.941,0.46797735]
[1770808342544,3.40999268,80.97,80.941,0.46797735]
[1770808343244,0.2,80.972,80.941,0.46797735]
[1770808343540,17.26,81.006,80.93,0.2]
[1770808343541,0.2,80.984,80.95,3.40999268]
[1770808343838,0.2,80.984,80.951,0.46797735]
[1770808344546,0.2,80.989,80.951,0.46797735]
[1770808344944,0.2,80.979,80.951,0.46797735]
[1770808346552,3.40999268,80.99,80.951,0.46797735]
[1770808346848,3.40999268,80.99,80.961,0.45674787]
[1770808347147,3.60999268,80.99,80.961,0.45674787]
[1770808347365,0.2,80.989,80.961,0.45674787]
[1770808347730,0.2,80.999,80.961,0.45674787]
[1770808348828,0.2,80.999,80.971,0.45674787]
[1770808349026,3.40999268,81.01,80.971,0.45674787]
[1770808349245,0.2,81.015,80.971,0.45674787]
[1770808349448,3.40999268,81.01,80.971,0.45674787]
[1770808349649,0.2,81.009,80.971,0.45674787]
[1770808358043,0.2,80.999,80.971,0.45674787]
[1770808361364,0.2,80.979,80.945,0.45674787]
[1770808361742,0.2,80.979,80.92,3.41128269]
[1770808361743,0.2,80.989,80.961,0.45674787]
[1770808366174,0.2,80.995,80.961,0.45674787]
[1770808369570,0.2,80.989,80.961,0.45674787]
[1770808371275,0.2,80.999,80.961,0.45674787]
[1770808371461,3.61128269,80.99,80.961,0.45674787]
[1770808371659,0.2,80.989,80.961,0.45674787]
[1770808376172,0.2,80.999,80.961,0.45674787]
[1770808376376,0.2,80.989,80.961,0.45674787]
[1770808377392,3.61128269,80.98,80.961,0.45674787]
[1770808377772,0.2,80.979,80.961,0.45674787]
[1770808378690,0.2,80.979,80.941,0.49157236]
[1770808379099,0.2,80.969,80.934,0.49157236]
[1770808382703,0.2,80.969,80.93,3.61128269]
[1770808382704,0.2,80.969,80.941,0.49157236]
[1770808383015,0.2,80.969,80.931,0.49157236]
[1770808384279,6.45247845,80.974,80.941,0.49157236]
[1770808385297,6.65247845,80.974,80.941,0.49157236]
[1770808385502,0.2,80.973,80.941,0.49157236]
[1770808385703,0.2,80.969,80.941,0.49157236]
[1770808392811,3.41128269,80.97,80.941,0.49157236]
[1770808392812,0.2,80.959,80.941,0.49157236]
[1770808394213,0.2,80.969,80.941,0.49157236]
[1770808397820,0.2,80.959,80.931,0.49157236]
[1770808399302,0.2,80.969,80.931,0.49157236]
[1770808402019,0.2,80.98,80.951,0.48258776]
[1770808402317,0.2,80.979,80.951,0.48258776]
[1770808407205,6.63936175,80.984,80.951,0.48258776]
[1770808407817,0.2,80.983,80.951,0.48258776]
[1770808409214,6.43936175,80.984,80.951,0.48258776]
[1770808410522,0.2,80.979,80.951,0.48258776]
[1770808411221,6.63936175,80.984,80.951,0.48258776]
[1770808412010,6.43936175,80.984,80.951,0.48258776]
[1770808412211,0.2,80.995,80.961,0.47602429]
[1770808413647,6.43695742,80.999,80.971,0.47602429]
[1770808413925,6.63695742,80.999,80.971,0.47602429]
[1770808414336,0.2,81.005,80.971,0.47602429]
[1770808416924,0.2,80.999,80.971,0.47602429]
[1770808421642,0.2,81.009,80.98,3.41126169]
[1770808421846,0.2,81.009,80.981,0.47602429]
[1770808431050,0.2,81.009,80.961,0.47641379]
[1770808431440,0.2,80.999,80.961,0.47641379]
[1770808435156,0.2,80.999,80.971,0.47641379]
[1770808437358,3.41148368,81.01,80.971,0.47641379]
[1770808437665,0.2,81.009,80.971,0.47641379]
[1770808439763,0.2,81.009,80.981,0.47641379]
[1770808440567,0.2,81.017,80.981,0.47641379]
[1770808443751,0.2,81.009,80.981,0.47641379]
[1770808451656,0.2,81.025,80.991,0.47641379]
[1770808452553,0.2,81.025,80.99,3.41148368]
[1770808452762,0.2,81.019,80.971,0.47641379]
[1770808453673,3.41148368,81.01,80.971,0.47641379]
[1770808453880,0.2,81.009,80.971,0.47641379]
[1770808455858,0.2,81.009,80.981,0.47641379]
[1770808478892,0.2,80.999,80.958,0.48589545]
[1770808479076,0.2,80.989,80.961,0.48589545]
[1770808486692,0.2,80.969,80.936,0.48589545]
[1770808486900,0.2,80.959,80.936,0.48589545]
[1770808487098,0.2,80.959,80.931,0.48589545]
[1770808487594,5.13032502,80.997,80.931,0.48589545]
[1770808487595,3.41201701,80.95,80.931,0.48589545]
[1770808487797,0.2,80.949,80.925,0.48589545]
[1770808490087,37.14,81.032,80.91,3.61201701]
[1770808490088,0.2,80.939,80.92,0.48589545]
[1770808490607,0.2,80.939,80.911,0.5]
[1770808492311,3.41201701,80.95,80.911,0.5]
[1770808492486,3.41201701,80.95,80.921,0.5]
[1770808493100,3.41201701,80.96,80.931,0.5]
[1770808493507,3.41201701,80.95,80.931,0.5]
[1770808493889,3.41201701,80.95,80.911,0.5]
[1770808494086,5.13032502,80.975,80.911,0.5]
[1770808494294,3.41201701,80.94,80.911,0.5]
[1770808495388,3.41201701,80.95,80.911,0.5]
[1770808505312,3.41613536,80.95,80.911,0.5]
[1770808507930,3.41613536,80.95,80.921,0.5]
[1770808519846,3.41613536,80.96,80.921,0.5]
[1770808520256,3.41613536,80.95,80.921,0.5]
[1770808525557,3.41613536,80.96,80.921,0.5]
[1770808526957,3.41613536,80.96,80.93,3.41613536]
[1770808527158,6.44115104,80.986,80.951,0.5]
[1770808527473,3.41613536,81.0,80.961,0.5]
[1770808532555,3.41613536,81.0,80.97,3.41613536]
[1770808532761,3.41613536,81.0,80.971,0.5]
[1770808536851,3.41613536,80.99,80.966,0.5]
[1770808537047,3.41613536,81.0,80.966,0.5]
[1770808538776,3.41613536,80.99,80.966,0.5]
[1770808540380,3.41613536,80.98,80.951,0.5]
[1770808544870,3.41301053,80.98,80.951,0.5]
[1770808546770,3.41301053,80.99,80.951,0.5]
[1770808547375,3.41301053,81.0,80.961,0.5]
[1770808551577,11.56880158,81.011,80.961,0.5]
[1770808551578,3.41301053,80.99,80.961,0.5]
[1770808566384,3.41301053,81.01,80.971,0.5]
[1770808570594,3.41301053,81.0,80.971,0.5]
[1770808571007,3.41301053,80.99,80.971,0.5]
[1770808571498,3.41301053,81.0,80.971,0.5]
[1770808572901,3.41301053,80.99,80.971,0.5]
[1770808573579,3.41301053,80.99,80.961,0.5]
[1770808578798,3.41301053,81.0,80.971,0.5]
[1770808591015,3.41301053,81.01,80.971,0.5]
[1770808591609,3.41301053,81.0,80.971,0.5]
[1770808595717,3.41301053,81.0,80.96,3.41301053]
[1770808595916,3.41301053,80.97,80.941,0.5]
[1770808596098,3.41301053,80.96,80.921,0.5]
[1770808596303,3.41301053,80.95,80.921,0.5]
[1770808602512,6.44217522,80.97,80.921,0.5]
[1770808602713,3.41301053,80.95,80.921,0.5]
[1770808604925,3.41572825,80.95,80.921,0.5]
[1770808606733,6.44217522,80.97,80.91,0.2]
[1770808606734,3.41572825,80.93,80.91,0.2]
[1770808607912,3.41572825,80.92,80.89,0.74]
[1770808608114,3.41572825,80.91,80.89,0.24]
[1770808608307,3.41572825,80.9,80.89,0.24]
[1770808609212,3.41572825,80.9,80.88,0.2]
[1770808609412,3.41572825,80.89,80.88,0.2]
[1770808609634,3.41572825,80.89,80.87,0.2]
[1770808609825,3.41572825,80.88,80.87,0.2]
[1770808610433,3.41572825,80.89,80.87,0.7]
[1770808610629,3.41572825,80.89,80.871,0.5]
[1770808612729,3.41572825,80.9,80.871,0.5]
[1770808612933,3.41572825,80.91,80.871,0.5]
[1770808613424,3.41572825,80.92,80.881,0.5]
[1770808615527,3.41572825,80.91,80.881,0.5]
[1770808616630,3.41572825,80.92,80.881,0.5]
[1770808617024,3.41853206,80.92,80.881,0.5]
[1770808617223,3.41853206,80.91,80.881,0.5]
[1770808618937,3.41853206,80.92,80.881,0.5]
[1770808619933,3.41853206,80.93,80.881,0.5]
[1770808620318,3.41853206,80.92,80.881,0.5]
[1770808623717,3.41853206,80.91,80.881,0.5]
[1770808625542,3.41853206,80.92,80.881,0.5]
[1770808626118,3.41853206,80.91,80.881,0.5]
[1770808626335,3.41853206,80.92,80.881,0.5]
[1770808629337,3.41853206,80.93,80.891,0.5]
[1770808630238,3.41853206,80.92,80.891,0.5]
[1770808630545,3.41853206,80.93,80.891,0.5]
[1770808632142,3.41853206,80.92,80.891,0.5]
[1770808637058,3.41853206,80.93,80.891,0.5]
[1770808637260,6.44311398,80.94,80.891,0.5]
[1770808637261,3.41853206,80.94,80.891,0.5]
[1770808637760,25.42,80.949,80.901,0.5]
[1770808638051,25.42,80.949,80.911,0.5]
[1770808641152,3.41853206,80.94,80.911,0.5]
[1770808641458,25.42,80.949,80.911,0.5]
[1770808642957,3.41853206,80.94,80.911,0.5]
[1770808643154,25.42,80.949,80.911,0.5]
[1770808647148,25.42,80.949,80.921,0.5]
[1770808647355,3.41853206,80.96,80.921,0.5]
[1770808649461,3.41853206,80.97,80.931,0.5]
[1770808652060,3.41853206,80.98,80.941,0.5]
[1770808652658,23.8,80.985,80.92,3.41853206]
[1770808652659,23.8,80.985,80.95,3.41853206]
[1770808652840,3.41853206,81.0,80.961,0.5]
[1770808653458,3.41853206,80.99,80.961,0.5]
[1770808654456,3.41853206,80.99,80.941,0.5]
[1770808658367,3.41853206,80.99,80.951,0.5]
[1770808665263,25.38,81.003,80.951,0.5]
[1770808665469,25.38,81.003,80.961,0.5]
[1770808665470,3.41853206,81.0,80.961,0.5]
[1770808665879,25.38,81.003,80.961,0.5]
[1770808666345,3.41853206,81.0,80.961,0.5]
[1770808666852,3.4114341,81.0,80.961,0.5]
[1770808670096,3.4114341,80.99,80.951,0.5]
[1770808670570,25.36,80.996,80.961,0.5]
[1770808671186,3.4114341,81.0,80.961,0.5]
[1770808671360,25.36,81.007,80.971,0.5]